[Event "Teplice Open 2022"]
[Site "Teplice"]
[Date "2022.06.24"]
[Round "7.1"]
[White "Kollars, Dmitrij"]
[Black "Demchenko, Anton"]
[Result "1-0"]
[ECO "C55"]
[WhiteElo "2635"]
[BlackElo "2654"]
[Annotator "TA"]
[PlyCount "83"]
[EventDate "2022.06.18"]
[EventType "swiss"]
[EventCountry "CZE"]
[SourceTitle "playchess.com"]
[Source "ChessBase"]
[SourceQuality "1"]
[TimeControl "40/5400+30:1800+30"]

{[%evp 15,83,33,41,47,35,22,37,45,71,50,79,74,70,75,98,100,98,100,112,105,105,104,113,117,117,110,96,102,99,85,91,73,173,154,163,154,151,151,289,272,378,381,525,532,479,318,322,322,313,309,308,308,293,263,347,349,320,313,418,367,364,306,461,454,454,436,818,826,760,752]} 1. e4 {[%emt 0:10:20]} e5 {[%emt 0:00:06]} 2. Nf3 {[%emt 0:00:05]} Nc6 {[%emt 0:00:06]} 3. Bc4 {[%emt 0:00:20]} Nf6 {[%emt 0:00:11]} 4. d3 {[%emt 0:00:08]} h6 {[%emt 0:01:01]} 5. O-O {[%emt 0:00:36]} d6 {[%emt 0:00:08]} 6. c3 {[%emt 0:00:41]} Be7 {[%emt 0:00:07]} 7. a4 {[%emt 0:01:01]} O-O {[%emt 0:00:44]} 8. Re1 {[%emt 0:00:19]} Nh7 {[%emt 0:06:59]} 9. a5 {[%emt 0:00:49] C55: Two Knights: 4 d3, 4 d4 exd4 5 e5 and Max Lange Attack.} a6 {[%emt 0:00:08]} 10. d4 {[%emt 0:00:55]} Bg4 {[%emt 0:02:08]} 11. d5 {[%emt 0:03:14] [#] White is slightly better.} Na7 $146 {[%emt 0:01:01]} ({Predecessor:} 11... Nb8 12. h3 Bh5 13. b4 Nd7 14. Nbd2 Ng5 15. Be2 Bg6 16. Bd3 f5 17. exf5 Bxf5 18. Bxf5 Rxf5 {1-0 (47) Saric,I (2511)-Orak,L (2315) Sibenik 2008}) 12. h3 {[%emt 0:07:14][%cal Bh2h3,Bh3h4][%mdl 32]} Bxf3 {[%emt 0:23:32]} 13. Qxf3 {[%emt 0:00:05]} Bg5 {[%emt 0:00:47]} 14. Nd2 {[%emt 0:05:37] White is more active.} g6 {[%emt 0:02:20]} 15. g3 {[%emt 0:04:29]} h5 {[%emt 0:22:28]} 16. h4 {[%emt 0:03:45]} Bh6 {[%emt 0:00:01]} 17. Bf1 {[%emt 0:00:26]} Nc8 {[%emt 0:03:48]} 18. c4 {[%emt 0:05:23]} Ne7 {[%emt 0:01:06]} 19. c5 {[%emt 0:11:00]} f5 {[%emt 0:01:09]} 20. cxd6 {[%emt 0:03:04]} cxd6 {[%emt 0:00:16] [#]} 21. Bh3 $1 {[%emt 0:03:50]} Rc8 {[%emt 0:05:18][%cal Oc8c1] [#] ...Rxc1! is the strong threat.} 22. Nc4 $1 {[%emt 0:02:17]} Bxc1 {[%emt 0:07:51]} (22... Kg7 23. Bxh6+) 23. Raxc1 {[%emt 0:00:22]} Rc5 {[%emt 0:01:40] [#]} (23... Rc7 $16) 24. Qa3 $1 $18 {[%emt 0:08:21][%cal Oc4d6] Black must now prevent Nxd6!} Nc8 {[%emt 0:01:39]} 25. Ne3 {[%emt 0:03:54]} Rxc1 {[%emt 0:02:12]} 26. Rxc1 {[%emt 0:00:04] Hoping for Qb4.} Ne7 {[%emt 0:00:04]} (26... Na7 $16 {is a better defense.}) 27. Qb4 {[%emt 0:03:09]} Qb8 {[%emt 0:06:17]} 28. Qb6 {[%emt 0:04:45]} Nf6 {[%emt 0:04:40]} (28... fxe4 $2 29. Rc7 Nc8 30. Be6+ Kh8 31. Qxb7 Qxb7 32. Rxb7 $18) 29. exf5 {[%emt 0:01:13]} gxf5 {[%emt 0:00:35]} 30. Bxf5 {[%emt 0:03:10]} Nxf5 {[%emt 0:04:15]} 31. Nxf5 {[%emt 0:00:04]} Nxd5 {[%emt 0:00:04]} 32. Qxd6 {[%emt 0:00:48]} Qxd6 {[%emt 0:00:05]} 33. Nxd6 {[%emt 0:00:04][%cal Bf5d6,Bd6b7,Bb7c5][%mdl 4128] Endgame KRN-KRN} Nb4 {[%emt 0:00:22]} 34. Rc3 {[%emt 0:05:31] Against Nd3} ({Much less strong is} 34. Nxb7 $6 Nd3 35. Rc3 Nxf2 $18) 34... Nc6 {[%emt 0:00:53]} 35. Nxb7 {[%emt 0:00:53]} Nd4 {[%emt 0:00:04]} 36. Kg2 {[%emt 0:00:31]} Kf7 {[%emt 0:01:53]} 37. Nc5 {[%emt 0:01:00]} Rb8 {[%emt 0:00:09]} 38. Nxa6 {[%emt 0:02:19]} Rxb2 {[%emt 0:00:05]} (38... Ra8 $142 39. Nc5 Rxa5) 39. Nc5 {[%emt 0:00:17] White is clearly winning.} Ra2 {[%emt 0:00:13]} 40. a6 {[%emt 0:00:07]} Kf6 {[%emt 0:00:35]} (40... Nc6 $142 41. Rf3+ Kg6) 41. Rc4 {[%emt 0:31:40]} Nb5 {[%emt 0:03:42]} 42. Ra4 {[%emt 0:00:00] Weighted Error Value: White=0.11 (very precise) /Black=0.33} 1-0

[Event "Teplice Open 2022"]
[Site "Teplice"]
[Date "2022.06.24"]
[Round "7.2"]
[White "Santos Latasa, Jaime"]
[Black "Ali Marandi, Cemil Can"]
[Result "1/2-1/2"]
[ECO "C50"]
[WhiteElo "2672"]
[BlackElo "2532"]
[Annotator "TA"]
[PlyCount "61"]
[EventDate "2022.06.18"]
[EventType "swiss"]
[EventCountry "CZE"]
[SourceTitle "playchess.com"]
[Source "ChessBase"]
[SourceQuality "1"]
[TimeControl "40/5400+30:1800+30"]

{[%evp 9,61,16,22,18,29,21,25,27,20,25,28,11,20,18,12,18,37,17,16,8,12,10,43,52,47,25,24,0,0,-7,0,0,0,0,24,0,17,0,0,0,0,0,0,0,13,0,0,0,-2,-7,-7,-5,0,0]} 1. e4 {[%emt 0:00:04]} e5 {[%emt 0:00:07]} 2. Nf3 {[%emt 0:00:04]} Nc6 {[%emt 0:00:05]} 3. Bc4 {[%emt 0:00:18]} Nf6 {[%emt 0:00:10]} 4. d3 {[%emt 0:00:05]} Bc5 {[%emt 0:00:06]} 5. O-O {[%emt 0:00:09]} a6 {[%emt 0:00:37]} 6. a4 {[%emt 0:00:42] C50: Hungarian Defence and Giuoco Pianissimo.} d6 {[%emt 0:01:08]} 7. c3 {[%emt 0:00:05]} Ba7 {[%emt 0:00:14]} 8. Re1 {[%emt 0:00:35] White has an edge.} h6 {[%emt 0:01:14]} 9. Nbd2 {[%emt 0:00:07][%cal Bb1d2,Bd2f1,Bf1g3,Bg3f5][%mdl 32]} O-O {[%emt 0:00:30]} 10. h3 {[%emt 0:00:05]} Re8 {[%emt 0:00:36]} 11. b4 $1 {[%emt 0:00:30] The main line 11.b4 scores better than 11.Nf1.} Be6 {[%emt 0:00:57]} 12. Bxe6 {[%emt 0:00:10]} Rxe6 {[%emt 0:00:07]} 13. Bb2 {[%emt 0:00:04]} Ne7 {[%emt 0:05:18]} 14. Nf1 {[%emt 0:00:37]} Ng6 {[%emt 0:02:33]} 15. c4 {[%emt 0:00:27] [#]} Qd7 $5 $146 {[%emt 0:08:40][%mdl 8] An interesting novelty.} ({Predecessor:} 15... Nh7 16. Ng3 Ng5 17. Nh2 Nf4 18. d4 a5 19. bxa5 Rg6 20. Ra3 exd4 21. Bc1 Nge6 {1-0 (47) Karjakin,S (2743)-Amin,B (2680) Warsaw 2021}) 16. Ng3 {[%emt 0:05:35]} Rae8 {[%emt 0:01:42]} 17. Bc1 {[%emt 0:07:25]} c6 {[%emt 0:01:46]} 18. Be3 {[%emt 0:01:15]} Bxe3 {[%emt 0:00:42]} 19. Rxe3 {[%emt 0:00:23]} d5 {[%emt 0:01:07]} 20. Nf5 {[%emt 0:01:22]} Rd8 {[%emt 0:05:31] [#] Strongly threatening ...dxe4.} 21. Qc2 {[%emt 0:02:41]} Kh7 {[%emt 0:06:18]} 22. c5 {[%emt 0:07:26]} Ne8 {[%emt 0:09:50] The position is equal.} 23. d4 {[%emt 0:08:43]} exd4 {[%emt 0:05:17]} 24. N3xd4 {[%emt 0:01:39]} Rxe4 {[%emt 0:00:11]} 25. Rxe4 {[%emt 0:00:51]} dxe4 {[%emt 0:00:02]} 26. Qxe4 {[%emt 0:00:15]} Nf6 {[%emt 0:00:59]} 27. Qb1 {[%emt 0:00:45]} Qd5 {[%emt 0:04:09]} 28. Ra3 {[%emt 0:03:30]} Re8 {[%emt 0:01:12]} 29. Re3 {[%emt 0:04:36]} Rxe3 {[%emt 0:03:10]} 30. fxe3 {[%emt 0:00:27]} Ne4 {[%emt 0:02:04]} 31. Qb3 {[%emt 0:01:41] Weighted Error Value: White=0.06 (flawless) /Black=0.05 (flawless)} 1/2-1/2

[Event "Teplice Open 2022"]
[Site "Teplice"]
[Date "2022.06.24"]
[Round "7.3"]
[White "Pultinevicius, Paulius"]
[Black "Narayanan.S.L"]
[Result "0-1"]
[ECO "D38"]
[WhiteElo "2536"]
[BlackElo "2662"]
[Annotator "TA"]
[PlyCount "76"]
[EventDate "2022.06.18"]
[EventType "swiss"]
[EventCountry "CZE"]
[SourceTitle "playchess.com"]
[Source "ChessBase"]
[SourceQuality "1"]
[TimeControl "40/5400+30:1800+30"]

{[%evp 15,76,29,21,25,12,20,12,-4,0,-13,-25,-26,-17,-53,-53,-53,-52,-55,-54,-77,-68,-148,-197,-222,-104,-138,-139,-266,-262,-271,-218,-289,-275,-262,-156,-325,-349,-339,-239,-224,-236,-258,-151,-143,-117,-248,-90,-427,-108,-103,-87,-279,-103,-103,-103,-103,-103,-102,-86,-77,-66,-29981,-29980]} 1. d4 {[%emt 0:00:02]} Nf6 {[%emt 0:04:49]} 2. c4 {[%emt 0:00:07]} e6 {[%emt 0:00:05]} 3. Nf3 {[%emt 0:00:03]} d5 {[%emt 0:00:09]} 4. Nc3 {[%emt 0:00:27]} Bb4 {[%emt 0:00:06]} 5. Bg5 {[%emt 0:00:43]} h6 {[%emt 0:01:07]} 6. Bxf6 {[%emt 0:00:06]} Qxf6 {[%emt 0:00:06]} 7. e3 {[%emt 0:00:05]} O-O {[%emt 0:00:19]} 8. Rc1 {[%emt 0:00:05]} Nc6 {[%emt 0:00:32]} 9. a3 {[%emt 0:02:11] D38: Queen's Gambit Declined: Ragozin Defence (4 Nf3 Bb4).} Bxc3+ {[%emt 0:00:07]} 10. Rxc3 {[%emt 0:00:04]} dxc4 {[%emt 0:00:08]} 11. Rxc4 {[%emt 0:01:53] The position is equal.} e5 $1 {[%emt 0:01:18]} 12. d5 {[%emt 0:02:40]} Rd8 {[%emt 0:03:59][%cal Oe5e4]} 13. e4 {[%emt 0:24:01]} Bg4 {[%emt 0:00:45][%cal Oc6d4]} 14. Be2 {[%emt 0:03:35]} Bxf3 {[%emt 0:07:25]} 15. Bxf3 {[%emt 0:00:06]} Nd4 $1 {[%emt 0:00:19]} 16. Rxc7 {[%emt 0:01:52]} Qb6 {[%emt 0:12:59][%csl LRb2,LRc7] [#]} 17. Rc4 $146 {[%emt 0:31:31]} ({Predecessor:} 17. Qc1 Qa6 18. Qc4 Qa5+ 19. Qc3 Qa6 20. Bd1 Qg6 21. Bf3 Nb5 22. Qxe5 Nxc7 23. Qxc7 {0-1 (32) Livaic,L (2492)-Vaibhav,S (2591) Chess.com INT 2020}) 17... Qxb2 {[%emt 0:01:23]} 18. O-O {[%emt 0:00:05]} ({White should play} 18. Qc1 $15 Qxc1+ 19. Rxc1) 18... Qxa3 $17 {[%emt 0:03:27]} 19. Bh5 {[%emt 0:00:36]} Rac8 {[%emt 0:03:28]} (19... b5 $19 20. Rc7 g6) 20. Ra4 {[%emt 0:09:20]} Qc5 $36 {[%emt 0:00:28][%mdl 2048] White is under strong pressure. Black is much more active.} 21. h3 {[%emt 0:00:07]} (21. Qa1 $17) 21... b5 $19 {[%emt 0:11:44]} 22. Ra6 {[%emt 0:01:29]} Rd6 {[%emt 0:00:27]} 23. Rxd6 {[%emt 0:00:36]} Qxd6 {[%emt 0:00:06]} 24. f4 {[%emt 0:00:06]} Rc7 {[%emt 0:08:26]} (24... g6 $19 {Strongly threatening ...Rc7.} 25. Bg4 Rc2) 25. Kh1 $2 {[%emt 0:07:02]} (25. Qd2 $17) 25... a5 {[%emt 0:04:48][%cal Ba7a5,Ba5a4][%mdl 32]} 26. Qa1 {[%emt 0:02:11]} a4 {[%emt 0:01:15]} 27. fxe5 {[%emt 0:01:58]} Qxe5 {[%emt 0:00:20]} 28. Rd1 {[%emt 0:00:40] [#]} Qxh5 {[%emt 0:02:56]} (28... Nc6 $1 $19 29. Bg4 Qxa1 30. Rxa1 Na5) 29. Qxd4 {[%emt 0:01:34][%mdl 4096] Endgame KQR-KQR} f6 {[%emt 0:07:11]} 30. Rb1 {[%emt 0:01:09]} (30. d6 $17 Rd7 31. Rb1) 30... Qe5 $2 {[%emt 0:02:47]} (30... Qe2 $19 31. Rd1 Qc4 32. Qxc4 Rxc4) 31. Qb4 $2 {[%emt 0:05:07][%mdl 8192]} (31. Qxe5 $17 {nothing else works.} fxe5 32. Rxb5) 31... Rc4 $2 {[%emt 0:01:35]} (31... Rc2 $19 {is more deadly.} 32. Qxb5 Qxe4) 32. Qxb5 $17 {[%emt 0:00:15]} Rxe4 {[%emt 0:00:09] ...f5 is the strong threat.} (32... Qxe4 {is more complex.} 33. Rd1 Qe2 34. Qb8+ Kf7) 33. Qa5 $2 {[%emt 0:02:10]} (33. Rd1 $17 {is the only way for White.}) 33... Kh7 $2 {[%emt 0:02:30]} (33... Rd4 $19 34. Re1 Qxd5 35. Qxd5+ Rxd5) 34. Rd1 {[%emt 0:01:05]} Rd4 {[%emt 0:03:21]} 35. Rxd4 {[%emt 0:00:26]} Qxd4 {[%emt 0:00:04]} 36. Qa6 {[%emt 0:00:34]} Qa1+ {[%emt 0:01:45]} 37. Kh2 {[%emt 0:00:04]} a3 {[%emt 0:01:10]} 38. Qe6 $2 {[%emt 0:01:30][%mdl 8192] [#]} (38. Qd3+ $15 Kg8 39. d6 Qe5+ 40. g3) 38... Qb1 $1 {[%emt 0:00:50] Weighted Error Value: White=0.66/Black=0.59} ({Inferior is} 38... a2 39. Qf5+ g6 40. Qd7+ Kh8 41. Qe8+ Kh7 42. Qf7+ Kh8 43. Qe8+ (43. Qf8+ Kh7 $11) 43... Kh7 44. Qf7+ Kh8 45. Qf8+ Kh7 46. Qf7+ $11) 0-1

[Event "Teplice Open 2022"]
[Site "Teplice"]
[Date "2022.06.24"]
[Round "7.4"]
[White "Laurusas, Tomas"]
[Black "Yilmazyerli, Mert"]
[Result "1/2-1/2"]
[ECO "D10"]
[WhiteElo "2567"]
[BlackElo "2502"]
[Annotator "TA"]
[PlyCount "115"]
[EventDate "2022.06.18"]
[EventType "swiss"]
[EventCountry "CZE"]
[SourceTitle "playchess.com"]
[Source "ChessBase"]
[SourceQuality "1"]
[TimeControl "40/5400+30:1800+30"]

{[%evp 16,115,0,0,0,0,0,0,0,0,8,17,14,23,19,0,0,-6,0,0,61,58,62,54,56,66,86,90,89,66,122,122,150,142,154,144,182,173,156,150,266,252,255,233,260,260,294,245,248,237,294,285,332,0,3,0,334,225,225,152,138,141,154,140,140,153,138,32,38,25,13,0,0,0,0,0,0,0,0,0,0,0,0,0,0,0,0,0,0,0,0,0,0,0,0,0,0,0,0,0,0,-289]} 1. d4 {[%emt 0:00:56]} d5 {[%emt 0:08:32]} 2. c4 {[%emt 0:00:13]} dxc4 {[%emt 0:00:05]} 3. e4 {[%emt 0:04:01]} b5 {[%emt 0:01:12][%cal Bb7b5,Bb5b4][%mdl 32]} 4. a4 {[%emt 0:02:28]} c6 {[%emt 0:00:06]} 5. Nc3 {[%emt 0:02:49]} b4 {[%emt 0:00:14]} 6. Na2 {[%emt 0:02:48]} Nf6 {[%emt 0:00:19]} 7. e5 {[%emt 0:02:19]} Nd5 {[%emt 0:00:05]} 8. Bxc4 {[%emt 0:00:12]} e6 {[%emt 0:00:10]} 9. Nf3 {[%emt 0:01:32]} Be7 {[%emt 0:00:36] Against Bg5. D10: Slav Defence: 3 cxd5 (without early Nf3) and 3 Nc3.} 10. O-O {[%emt 0:03:47]} O-O {[%emt 0:01:29]} 11. Bd2 {[%emt 0:05:31][%cal Oa4a5]} a5 {[%emt 0:00:23]} 12. Nc1 {[%emt 0:01:59]} Ba6 {[%emt 0:00:09]} 13. Bxa6 {[%emt 0:06:03]} Nxa6 {[%emt 0:01:49]} 14. Nb3 {[%emt 0:01:33]} c5 {[%emt 0:03:43]} 15. Qe2 {[%emt 0:03:05]} Qb6 {[%emt 0:03:07]} 16. Qb5 {[%emt 0:20:11] [#]} Qa7 $146 {[%emt 0:10:42]} ({Predecessor:} 16... Rfc8 17. Rfc1 Qa7 18. Bg5 Bf8 19. Be3 h6 20. Nfd2 Nac7 21. Qd3 Nxe3 22. fxe3 Nd5 23. Nc4 cxd4 24. exd4 Be7 25. Ncxa5 Rxc1+ 26. Rxc1 Bd8 27. Nc4 Qxa4 28. Rf1 {½-½ (28) Jedinger,A (2181)-Schild,R (2117) ICCF email 2012}) 17. Bg5 {[%emt 0:06:12]} Rfc8 {[%emt 0:10:16]} (17... cxd4 $11 18. Bxe7 Nxe7) 18. Bxe7 $14 {[%emt 0:10:42]} Nxe7 {[%emt 0:02:18]} 19. Rfc1 {[%emt 0:01:09]} (19. Qxa5 c4 20. Nc5 Nxc5 21. Qxa7 Rxa7 $17) (19. Nxa5 Nc7 20. Qd7 Qxa5 $15) 19... Rab8 {[%emt 0:05:19]} 20. Qd3 {[%emt 0:07:42]} Rd8 {[%emt 0:06:06]} 21. Nxa5 {[%emt 0:04:30] Strongly threatening Ng5.} (21. Ng5 {with more complications.} Ng6 22. h4 Qa8 23. f3) 21... h6 {[%emt 0:07:22] Inhibits Ng5.} 22. Nb3 {[%emt 0:01:37]} Nf5 {[%emt 0:05:24]} (22... Rd5 $14) 23. Rc4 {[%emt 0:03:20]} (23. Nxc5 $2 Nxc5 24. Rxc5 Qxc5 25. Qxf5 Rxd4 $19) 23... Rd5 {[%emt 0:00:47]} 24. Rac1 {[%emt 0:04:07]} Rbd8 {[%emt 0:01:00]} 25. h3 {[%emt 0:00:57]} (25. Nxc5 $2 Nxc5 26. Qd1 (26. Rxc5 $2 Rxc5 27. Rxc5 Qxc5 $19) 26... Nxa4 27. Rxb4 Nxd4 $1 28. Nxd4 Rxd4 $19) 25... Nxd4 {[%emt 0:05:01]} 26. Nfxd4 {[%emt 0:00:04]} cxd4 {[%emt 0:00:59]} 27. f4 {[%emt 0:00:01]} Qd7 {[%emt 0:01:18]} (27... Qe7 $16 {keeps fighting.} 28. Rc8 (28. Nxd4 Qa7 $11) 28... Nb8) 28. Rc6 $18 {[%emt 0:02:44]} Nb8 {[%emt 0:00:37]} 29. Rc7 {[%emt 0:00:01]} Qxa4 {[%emt 0:00:57]} 30. Nc5 {[%emt 0:00:01][%cal Bb3c5,Bc5b7,Bb7d6][%mdl 32] Prevents Qa6.} Qa5 {[%emt 0:06:31]} 31. Nb7 $1 {[%emt 0:01:14][%csl LRa5,LRd8]} Qa6 {[%emt 0:00:24]} 32. R1c4 $1 {[%emt 0:01:51][%mdl 1024] White has strong compensation.} Rf8 {[%emt 0:02:21]} 33. Nd6 $1 {[%emt 0:00:01]} Qb6 {[%emt 0:10:01]} (33... Qa1+ 34. Kh2 Qa5 35. b3 $16) 34. Rb7 $2 {[%emt 0:01:12]} ({Better is} 34. Kh2 $18) 34... Qa6 $11 {[%emt 0:01:03]} 35. Rbc7 $2 {[%emt 0:00:29][%mdl 8192]} (35. Rbxb4 $11 Nd7 36. Kh2) 35... Qb6 $1 $18 {[%emt 0:00:04]} (35... Qa1+ 36. Kh2 Qe1 37. Nxf7 $1 $18 {[%mdl 512]} (37. Rxd4 Qf2 $16)) 36. Rc8 {[%emt 0:00:33]} Nd7 {[%emt 0:00:33]} 37. R4c7 {[%emt 0:00:21]} Rxc8 {[%emt 0:03:43]} 38. Rxc8+ {[%emt 0:00:01]} Nf8 {[%emt 0:00:05] [#]} 39. Kh2 $1 {[%emt 0:00:42] White is much more active. The black rooks are badly placed.} Rxd6 {[%emt 0:03:31]} 40. exd6 {[%emt 0:00:05]} Qxd6 $16 {[%emt 0:00:03][%mdl 4096] Endgame KQR-KQN} 41. Qe4 {[%emt 0:05:28]} (41. g3 $16) 41... d3 $14 {[%emt 0:12:45][%cal Bd4d3,Bd3d2][%mdl 32]} 42. Qe5 {[%emt 0:03:10]} Qd7 {[%emt 0:00:51]} ({Don't play} 42... Qxe5 43. fxe5 g5 44. Rd8 $16) 43. Qc5 {[%emt 0:04:34] The position is equal.} d2 $1 {[%emt 0:00:53]} 44. Rxf8+ {[%emt 0:00:05]} Kh7 {[%emt 0:00:03]} 45. Qc2+ {[%emt 0:00:06]} f5 $1 {[%emt 0:00:05]} 46. Qd1 {[%emt 0:00:03]} Qd6 {[%emt 0:00:07]} 47. Ra8 {[%emt 0:00:28]} Qxf4+ {[%emt 0:00:19]} 48. Kh1 {[%emt 0:00:08] Rd8 is the strong threat.} Qf2 {[%emt 0:03:07]} 49. Ra1 {[%emt 0:06:46]} e5 $1 {[%emt 0:00:31]} 50. Qg1 {[%emt 0:00:23]} Qe2 {[%emt 0:00:48]} 51. Kh2 {[%emt 0:03:07] And now Qf1 would win.} f4 {[%emt 0:02:58][%cal Bf5f4,Bf4f3][%mdl 32]} 52. Qd1 {[%emt 0:00:23]} f3 {[%emt 0:00:16][%csl Gf3][%cal Re2g2]} 53. Qf1 {[%emt 0:03:41]} e4 {[%emt 0:04:03]} 54. Kg3 {[%emt 0:00:42]} h5 {[%emt 0:02:53] aiming for ...g5.} 55. h4 {[%emt 0:03:18] Hoping for Kf4.} ({Don't blunder} 55. gxf3 $2 Qxf1 56. Rxf1 e3 $19) 55... e3 {[%emt 0:04:20] ( -> ...Qxf1)} 56. Qxf3 {[%emt 0:02:59]} (56. gxf3 {is a self mate.} Qxf1 57. Rxf1 e2 58. Rh1 e1=Q+ 59. Kh2 Kg6 60. Rg1+ Kf6 61. b3 Qf2+ 62. Kh1 Kf5 63. Rg5+ Kf4 64. Rd5 Qxf3+ 65. Kh2 Qxd5 66. Kg1 d1=Q+ 67. Kh2 Q5h1#) 56... Qe1+ {[%emt 0:00:19]} 57. Kh3 $2 {[%emt 0:00:26][%mdl 8192]} (57. Rxe1 $11 dxe1=Q+ 58. Kh3) 57... Qxa1 $19 {[%emt 0:00:05]} 58. Qxh5+ {[%emt 0:00:33][%mdl 32768] What a bad dream for White.  Weighted Error Value: White=0.23 (precise) /Black=0.13 (very precise) . An unexpected result.} 1/2-1/2

[Event "Teplice Open 2022"]
[Site "Teplice"]
[Date "2022.06.24"]
[Round "7.5"]
[White "Berkes, Ferenc"]
[Black "Kraus, Tomas"]
[Result "1/2-1/2"]
[ECO "D37"]
[WhiteElo "2654"]
[BlackElo "2472"]
[Annotator "TA"]
[PlyCount "91"]
[EventDate "2022.06.18"]
[EventType "swiss"]
[EventCountry "CZE"]
[SourceTitle "playchess.com"]
[Source "ChessBase"]
[SourceQuality "1"]
[TimeControl "40/5400+30:1800+30"]

{[%evp 9,91,20,25,20,24,14,0,0,10,14,8,14,14,10,12,8,16,6,8,16,11,12,10,0,0,0,0,-4,35,52,102,83,207,198,196,195,179,119,117,117,97,114,104,111,114,101,101,93,90,85,87,64,109,69,70,66,67,67,67,75,75,0,0,0,0,0,0,0,0,0,0,0,0,0,0,0,0,0,0,0,0,0,0,0]} 1. d4 {[%emt 0:00:07]} d5 {[%emt 0:00:17]} 2. c4 {[%emt 0:00:07]} e6 {[%emt 0:01:08]} 3. Nf3 {[%emt 0:00:13]} Nf6 {[%emt 0:00:44]} 4. Nc3 {[%emt 0:00:12]} a6 {[%emt 0:01:00]} 5. cxd5 {[%emt 0:00:24]} exd5 {[%emt 0:00:06]} 6. Bg5 {[%emt 0:00:11] D37: Queen's Gambit Declined: 5 Bf4.} Be6 {[%emt 0:01:31]} 7. Bxf6 {[%emt 0:01:42]} Qxf6 {[%emt 0:00:34]} 8. Qb3 {[%emt 0:00:12][%csl LRb7,LRd5]} Ra7 {[%emt 0:00:06]} 9. a3 {[%emt 0:00:19]} (9. Nxd5 Qd8 10. e4 c6 $11) 9... Qd8 {[%emt 0:14:23]} 10. Qc2 {[%emt 0:00:20]} Nd7 {[%emt 0:04:33]} 11. e4 {[%emt 0:00:29]} dxe4 {[%emt 0:05:01]} 12. Nxe4 {[%emt 0:00:47]} Be7 {[%emt 0:03:27] [#] Inhibits Neg5.} 13. O-O-O $146 {[%emt 0:00:16]} ({Predecessor:} 13. Bc4 Bxc4 14. Qxc4 O-O 15. O-O Nf6 16. Nc3 c6 17. Rfe1 Ra8 18. Re2 Bd6 19. Rae1 {1-0 (46) Horvath,D (2453)-Costa,L (2069) Cattolica 2021}) 13... c6 {[%emt 0:07:55]} 14. Bd3 {[%emt 0:01:32]} h6 {[%emt 0:03:58]} 15. Rhe1 {[%emt 0:14:22]} O-O {[%emt 0:02:07]} 16. Ne5 {[%emt 0:26:43]} a5 {[%emt 0:02:44]} 17. f4 {[%emt 0:21:31]} a4 $1 {[%emt 0:03:08]} 18. Nc5 {[%emt 0:00:08] Inhibits Bb3.} Nxc5 {[%emt 0:05:18]} 19. dxc5 {[%emt 0:00:34] [#] Strongly threatening Bh7+.} Qa5 {[%emt 0:02:12]} ({Black should try} 19... Bd5 $1 $14) 20. Nxf7 {[%emt 0:05:59]} (20. Ng6 {feels hotter.} Qxc5 21. Qxc5 Bxc5 22. Nxf8 Bxf8 23. f5) 20... Qxc5 {[%emt 0:21:23]} 21. Qxc5 $18 {[%emt 0:06:40]} (21. Rxe6 $6 Qxc2+ 22. Kxc2 Kxf7 $14) 21... Bxc5 {[%emt 0:00:06]} 22. Rxe6 {[%emt 0:00:07]} (22. Nxh6+ $6 gxh6 23. Rxe6 Rxf4 $16) 22... Rxf7 {[%emt 0:02:00] [#]} 23. Re5 {[%emt 0:14:44]} (23. Bc4 $1 $18 Rxf4 24. Rd8+ (24. Re4+ Kh7 $11) 24... Kf7 25. Ba2 (25. Re4+ Kg6 $11)) 23... Bd6 $16 {[%emt 0:02:56]} 24. Re8+ {[%emt 0:00:06]} Rf8 {[%emt 0:00:13]} 25. Bc4+ {[%emt 0:00:10]} Kh7 {[%emt 0:00:18]} 26. Rxf8 {[%emt 0:00:08] White is more active.} Bxf8 {[%emt 0:00:05][%mdl 4096] Endgame KRB-KRB} 27. Rd8 {[%emt 0:00:37]} Bc5 {[%emt 0:03:04]} 28. f5 {[%emt 0:03:35][%cal Bf4f5,Bf5f6][%mdl 32] White wants to mate with Bg8+.} h5 {[%emt 0:02:39]} 29. Bd3 {[%emt 0:00:44] f6+ is the strong threat.} b5 {[%emt 0:02:37]} 30. Rc8 {[%emt 0:00:41]} b4 {[%emt 0:01:09]} 31. axb4 {[%emt 0:00:29]} Bxb4 {[%emt 0:00:18]} 32. f6+ {[%emt 0:00:53]} g6 $1 {[%emt 0:01:26]} 33. Rxc6 {[%emt 0:00:23]} a3 {[%emt 0:00:56]} 34. bxa3 {[%emt 0:00:08]} Rxa3 {[%emt 0:02:29]} 35. Kc2 {[%emt 0:01:16]} ({Better is} 35. Bc4 $16) 35... Ra2+ $1 $11 {[%emt 0:01:25] The position is equal.} 36. Kb3 {[%emt 0:00:06]} Ra3+ {[%emt 0:00:04]} 37. Kc2 {[%emt 0:00:14] And now Rc7+ would win.} ({Much less strong is} 37. Kxb4 Rxd3 38. Rc7+ Kg8 $14) 37... Ra2+ $1 {[%emt 0:00:13]} 38. Kb3 {[%emt 0:00:06]} Ra3+ {[%emt 0:00:05]} 39. Kxb4 {[%emt 0:00:06]} Rxd3 {[%emt 0:00:04] KR-KR} 40. Rc7+ {[%emt 0:02:05]} Kh6 {[%emt 0:01:00]} 41. Rc3 {[%emt 0:15:51]} Rd8 {[%emt 0:11:34]} 42. Rf3 {[%emt 0:02:59]} Rc8 {[%emt 0:06:33]} 43. h4 {[%emt 0:04:06]} Kh7 {[%emt 0:02:48]} 44. Rc3 {[%emt 0:01:27]} Rb8+ {[%emt 0:01:00]} 45. Kc5 {[%emt 0:00:21]} Kg8 {[%emt 0:00:24]} 46. Kd4 {[%emt 0:01:02] Black escapes into a draw.  Weighted Error Value: White=0.06 (flawless) /Black=0.07 (flawless)} 1/2-1/2